fUST/lending_fUST_20251004
["ID","MTS","AMOUNT","RATE_DAILY","PERIOD"]
[389137025,1759589440795,-500.0,0.00019178,2]
[389137026,1759589440804,-1062.25,0.00019178,2]
[389137027,1759589440814,-500.0,0.00019178,2]
[389137028,1759589440824,-542.38,0.00019178,2]
[389137029,1759589440833,-1000.0,0.00019178,2]
[389137030,1759589440843,-431.70542886,0.00019178,2]
[389137031,1759589440856,-500.0,0.00019178,2]
[389137032,1759589440866,-500.0,0.00019178,2]
[389137033,1759589440875,-151.0,0.00019178,2]
[389137034,1759589440885,-500.0,0.00019178,2]
[389137035,1759589440894,-1034.2,0.00019178,2]
[389137036,1759589440904,-896.68,0.00019178,2]
[389137037,1759589440914,-151.0,0.00019178,2]
[389137038,1759589440923,-500.0,0.00019178,2]
[389137039,1759589440933,-500.0,0.00019178,2]
[389137040,1759589440943,-500.0,0.00019178,2]
[389137041,1759589440952,-508.58,0.00019178,2]
[389137042,1759589440962,-500.0,0.00019178,2]
[389137043,1759589440972,-500.0,0.00019178,2]
[389137044,1759589440982,-500.0,0.00019178,2]
[389137045,1759589440991,-1611.43,0.00019178,2]
[389137046,1759589441001,-500.0,0.00019178,2]
[389137047,1759589441011,-727.3,0.00019178,2]
[389137048,1759589441020,-500.0,0.00019178,2]
[389137049,1759589441031,-500.0,0.00019178,2]
[389137050,1759589441040,-208.434354,0.00019178,2]
[389137051,1759589441050,-208.434354,0.00019178,2]
[389137052,1759589441061,-500.0,0.00019178,2]
[389137053,1759589441071,-500.0,0.00019178,2]
[389137054,1759589441081,-208.434354,0.00019178,2]
[389137055,1759589441091,-3259.12,0.00019178,2]
[389137056,1759589441103,-785.21,0.00019178,2]
[389137057,1759589441113,-500.0,0.00019178,2]
[389137058,1759589441122,-208.434354,0.00019178,2]
[389137059,1759589441132,-151.0,0.00019178,2]
[389137060,1759589441142,-151.0,0.00019178,2]
[389137061,1759589441151,-500.0,0.00019178,2]
[389137062,1759589441161,-151.0,0.00019178,2]
[389137063,1759589441170,-500.0,0.00019178,2]
[389137064,1759589441180,-2002.17,0.00019178,2]
[389137065,1759589441190,-151.0,0.00019178,2]
[389137066,1759589441199,-2625.52,0.00019178,2]
[389137067,1759589441209,-2625.52,0.00019178,2]
[389137068,1759589441220,-2625.52,0.00019178,2]
[389137069,1759589441230,-2625.52,0.00019178,2]
[389137070,1759589441240,-2625.52,0.00019178,2]
[389137071,1759589441250,-2625.52,0.00019178,2]
[389137072,1759589441259,-2625.52,0.00019178,2]
[389137073,1759589441269,-500.0,0.00019178,2]
[389137074,1759589441278,-2625.52,0.00019178,2]
[389137075,1759589441288,-2625.52,0.00019178,2]
[389137076,1759589441298,-2625.52,0.00019178,2]
[389137077,1759589441308,-2625.52,0.00019178,2]
[389137078,1759589441489,-2625.52,0.00019178,2]
[389137079,1759589441500,-2625.52,0.00019178,2]
[389137080,1759589441511,-2625.52,0.00019178,2]
[389137081,1759589441521,-2625.52,0.00019178,2]
[389137082,1759589441531,-2625.52,0.00019178,2]
[389137083,1759589441541,-662.61,0.00019178,2]
[389137084,1759589441552,-2625.52,0.00019178,2]
[389137085,1759589441564,-2625.52,0.00019178,2]
[389137086,1759589441575,-500.0,0.00019178,2]
[389137087,1759589441586,-2625.52,0.00019178,2]
[389137088,1759589441599,-2625.52,0.00019178,2]
[389137089,1759589441610,-2625.52,0.00019178,2]
[389137090,1759589441619,-2625.52,0.00019178,2]
[389137091,1759589441630,-2625.52,0.00019178,2]
[389137092,1759589441642,-2625.66,0.00019178,2]
[389137093,1759589441652,-642.0,0.00019178,2]
[389137094,1759589441662,-151.0,0.00019178,2]
[389137095,1759589441671,-500.0,0.00019178,2]
[389137096,1759589441681,-500.0,0.00019178,2]
[389137097,1759589441691,-500.0,0.00019178,2]
[389137098,1759589441700,-500.0,0.00019178,2]
[389137099,1759589441710,-151.0,0.00019178,2]
[389137100,1759589441720,-500.0,0.00019178,2]
[389137101,1759589441730,-500.0,0.00019178,2]
[389137102,1759589441740,-500.0,0.00019178,2]
[389137103,1759589441749,-450.9684212,0.00019178,2]
[389137104,1759589441759,-500.0,0.00019178,2]
[389137105,1759589441769,-500.0,0.00019178,2]
[389137106,1759589441778,-500.0,0.00019178,2]
[389137107,1759589441788,-151.0,0.00019178,2]
[389137108,1759589441797,-500.0,0.00019178,2]
[389137109,1759589441807,-500.0,0.00019178,2]
[389137111,1759589441817,-500.0,0.00019178,2]
[389137112,1759589441826,-500.0,0.00019178,2]
[389137114,1759589441836,-1607.56,0.00019178,2]
[389137115,1759589441848,-500.0,0.00019178,2]
[389137116,1759589441858,-500.0,0.00019178,2]
[389137117,1759589441867,-340.3737615,0.00019178,2]
[389137118,1759589441877,-500.0,0.00019178,2]
[389137119,1759589441887,-500.0,0.00019178,2]
[389137120,1759589441896,-274.09319055,0.00019178,2]
[389137121,1759589441906,-500.0,0.00019178,2]
[389137122,1759589441915,-500.0,0.00019178,2]
[389137123,1759589441924,-500.0,0.00019178,2]
[389137124,1759589441934,-500.0,0.00019178,2]
[389137125,1759589441943,-500.0,0.00019178,2]
[389137126,1759589441953,-500.0,0.00019178,2]
[389137127,1759589441962,-500.0,0.00019178,2]
[389137128,1759589441971,-500.0,0.00019178,2]
[389137129,1759589441981,-500.0,0.00019178,2]
[389137130,1759589441991,-151.0,0.00019178,2]
[389137131,1759589442001,-500.0,0.00019178,2]
[389137132,1759589442010,-500.0,0.00019178,2]
[389137133,1759589442019,-169.171735,0.00019178,2]
[389137134,1759589442029,-500.0,0.00019178,2]
[389137135,1759589442039,-151.0,0.00019178,2]
[389137136,1759589442049,-500.0,0.00019178,2]
[389137137,1759589442058,-500.0,0.00019178,2]
[389137138,1759589442068,-151.0,0.00019178,2]
[389137139,1759589442078,-500.0,0.00019178,2]
[389137140,1759589442088,-485.68367111,0.00019178,2]
[389137141,1759589442099,-151.0,0.00019178,2]
[389137142,1759589442108,-500.0,0.00019178,2]
[389137143,1759589442118,-500.0,0.00019178,2]
[389137144,1759589442128,-500.0,0.00019178,2]
[389137145,1759589442137,-500.0,0.00019178,2]
[389137146,1759589442147,-500.0,0.00019178,2]
[389137147,1759589442156,-151.0,0.00019178,2]
[389137148,1759589442166,-151.0,0.00019178,2]
[389137149,1759589442176,-1228.81,0.00019178,2]
[389137150,1759589442186,-500.0,0.00019178,2]
[389137151,1759589442196,-500.0,0.00019178,2]
[389137152,1759589442206,-275.335864,0.00019178,2]
[389137153,1759589442216,-500.0,0.00019178,2]
[389137154,1759589442226,-500.0,0.00019178,2]
[389137155,1759589442236,-500.0,0.00019178,2]
[389137156,1759589442245,-500.0,0.00019178,2]
[389137157,1759589442255,-500.0,0.00019178,2]
[389137158,1759589442265,-1791.14,0.00019178,2]
[389137159,1759589442275,-779.73,0.00019178,2]
[389137160,1759589442285,-500.0,0.00019178,2]
[389137161,1759589442295,-500.0,0.00019178,2]
[389137162,1759589442305,-151.0,0.00019178,2]
[389137163,1759589442315,-928.83,0.00019178,2]
[389137164,1759589442325,-500.0,0.00019178,2]
[389137165,1759589442335,-151.0,0.00019178,2]
[389137166,1759589442345,-151.0,0.00019178,2]
[389137167,1759589442356,-2854.17,0.00019178,2]
[389137168,1759589442366,-151.0,0.00019178,2]
[389137169,1759589442376,-500.0,0.00019178,2]
[389137170,1759589442386,-1319.17,0.00019178,2]
[389137171,1759589442396,-151.0,0.00019178,2]
[389137172,1759589442406,-500.0,0.00019178,2]
[389137173,1759589442416,-249.046014,0.00019178,2]
[389137174,1759589442426,-500.0,0.00019178,2]
[389137175,1759589442436,-500.0,0.00019178,2]
[389137176,1759589442445,-1144.71,0.00019178,2]
[389137177,1759589442454,-462.43779933,0.00019178,2]
[389137178,1759589442464,-1208.4,0.00019178,2]
[389137179,1759589442474,-500.0,0.00019178,2]
[389137180,1759589442485,-500.0,0.00019178,2]
[389137182,1759589442495,-325.85202466,0.00019178,2]
[389137185,1759589442506,-442.88149303,0.00019178,2]
[389137187,1759589442516,-529.38,0.00019178,2]
[389137189,1759589442526,-500.0,0.00019178,2]
[389137191,1759589442535,-500.0,0.00019178,2]
[389137192,1759589442544,-500.0,0.00019178,2]
[389137193,1759589442554,-322.83737882,0.00019178,2]
[389137194,1759589442568,-1239.16,0.00019178,2]
[389137195,1759589442579,-500.0,0.00019178,2]
[389137196,1759589442588,-500.0,0.00019178,2]
[389137197,1759589442602,-151.0,0.00019178,2]
[389137198,1759589442611,-530.41,0.00019178,2]
[389137199,1759589442621,-500.0,0.00019178,2]
[389137200,1759589442631,-500.0,0.00019178,2]
[389137201,1759589442642,-500.0,0.00019178,2]
[389137202,1759589442651,-500.0,0.00019178,2]
[389137203,1759589442661,-151.0,0.00019178,2]
[389137204,1759589442671,-618.50616044,0.00019178,2]
[389137206,1759589442681,-774.28,0.00019178,2]
[389137207,1759589442690,-1278.6,0.00019178,2]
[389137208,1759589442699,-500.0,0.00019178,2]
[389137210,1759589442709,-151.0,0.00019178,2]
[389137211,1759589442719,-500.0,0.00019178,2]
[389137212,1759589442728,-500.0,0.00019178,2]
[389137213,1759589442737,-151.0,0.00019178,2]
[389137214,1759589442747,-151.0,0.00019178,2]
[389137215,1759589442756,-151.0,0.00019178,2]
[389137216,1759589442766,-500.0,0.00019178,2]
[389137217,1759589442776,-151.0,0.00019178,2]
[389137218,1759589442786,-500.0,0.00019178,2]
[389137219,1759589442796,-535.82,0.00019178,2]
[389137220,1759589442806,-500.0,0.00019178,2]
[389137221,1759589442815,-500.0,0.00019178,2]
[389137222,1759589442824,-500.0,0.00019178,2]
[389137223,1759589442834,-500.0,0.00019178,2]
[389137224,1759589442843,-500.0,0.00019178,2]
[389137225,1759589442854,-298.39339868,0.00019178,2]
[389137226,1759589442864,-500.0,0.00019178,2]
[389137227,1759589442873,-201.97857689,0.00019178,2]
[389137228,1759589442883,-500.0,0.00019178,2]
[389137230,1759589442892,-172.511255,0.00019178,2]
[389137231,1759589442901,-500.0,0.00019178,2]
[389137232,1759589442910,-172.511255,0.00019178,2]
[389137233,1759589442919,-1794.32,0.00019178,2]
[389137234,1759589442928,-500.0,0.00019178,2]
[389137235,1759589442938,-151.0,0.00019178,2]
[389137236,1759589442948,-172.511255,0.00019178,2]
[389137237,1759589442958,-151.0,0.00019178,2]
[389137238,1759589442969,-172.511255,0.00019178,2]
[389137239,1759589442978,-500.0,0.00019178,2]
[389137240,1759589442987,-252.262497,0.00019178,2]
[389137241,1759589442996,-745.49,0.00019178,2]
[389137242,1759589443005,-1672.81,0.00019178,2]
[389137243,1759589443015,-500.0,0.00019178,2]
[389137244,1759589443024,-500.0,0.00019178,2]
[389137245,1759589443033,-1070.06,0.00019178,2]
[389137246,1759589443043,-151.0,0.00019178,2]
[389137247,1759589443052,-681.98,0.00019178,2]
[389137248,1759589443062,-500.0,0.00019178,2]
[389137249,1759589443078,-151.0,0.00019178,2]
[389137250,1759589443087,-176.76497957,0.00019178,2]
[389137251,1759589443097,-500.0,0.00019178,2]
[389137252,1759589443106,-500.0,0.00019178,2]
[389137253,1759589443115,-500.0,0.00019178,2]
[389137254,1759589443125,-500.0,0.00019178,2]
[389137255,1759589443134,-776.83,0.00019178,2]
[389137256,1759589443143,-777.54,0.00019178,2]
[389137257,1759589443152,-500.0,0.00019178,2]
[389137259,1759589443162,-500.0,0.00019178,2]
[389137260,1759589443170,-500.0,0.00019178,2]
[389137261,1759589443179,-3253.14,0.00019178,2]
[389137262,1759589443189,-500.0,0.00019178,2]
[389137263,1759589443198,-500.0,0.00019178,2]
[389137264,1759589443207,-1538.22,0.00019178,2]
[389137265,1759589443216,-500.0,0.00019178,2]
[389137266,1759589443226,-956.6,0.00019178,2]
[389137267,1759589443235,-500.0,0.00019178,2]
[389137268,1759589443245,-1062.26,0.00019178,2]
[389137269,1759589443255,-500.0,0.00019178,2]
[389137270,1759589443264,-500.0,0.00019178,2]
[389137271,1759589443273,-500.0,0.00019178,2]
[389137273,1759589443283,-2675.96,0.00019178,2]
[389137275,1759589443293,-500.0,0.00019178,2]
[389137276,1759589443302,-500.0,0.00019178,2]
[389137277,1759589443311,-1416.16,0.00019178,2]
[389137278,1759589443321,-500.0,0.00019178,2]
[389137279,1759589443330,-500.0,0.00019178,2]
[389137280,1759589443339,-500.0,0.00019178,2]
[389137281,1759589443350,-500.0,0.00019178,2]
[389137282,1759589443360,-500.0,0.00019178,2]
[389137283,1759589443370,-500.0,0.00019178,2]
[389137284,1759589443380,-500.0,0.00019178,2]
[389137285,1759589443389,-691.83,0.00019178,2]
[389137286,1759589443399,-500.0,0.00019178,2]
[389137287,1759589443408,-500.0,0.00019178,2]
[389137288,1759589443417,-500.0,0.00019178,2]
[389137289,1759589443427,-265.05340603,0.00019178,2]
[389137290,1759589443436,-500.0,0.00019178,2]
[389137291,1759589443445,-1336.13,0.00019178,2]
[389137292,1759589443455,-500.0,0.00019178,2]
[389137293,1759589443464,-500.0,0.00019178,2]
[389137294,1759589443474,-500.0,0.00019178,2]
[389137295,1759589443483,-500.0,0.00019178,2]
[389137296,1759589443494,-500.0,0.00019178,2]
[389137297,1759589443503,-500.0,0.00019178,2]
[389137298,1759589443512,-500.0,0.00019178,2]
[389137299,1759589443522,-500.0,0.00019178,2]
[389137300,1759589443531,-500.0,0.00019178,2]
[389137301,1759589443540,-500.0,0.00019178,2]
[389137302,1759589443550,-500.0,0.00019178,2]
[389137303,1759589443559,-500.0,0.00019178,2]
[389137304,1759589443572,-458.1176446,0.00019178,2]
[389137305,1759589443582,-3904.23,0.00019178,2]
[389137306,1759589443591,-1009.2,0.00019178,2]
[389137307,1759589443601,-500.0,0.00019178,2]
[389137308,1759589443611,-362.32166968,0.00019178,2]
[389137309,1759589443620,-500.0,0.00019178,2]
[389137310,1759589443630,-2385.0,0.00019178,2]
[389137311,1759589443642,-500.0,0.00019178,2]
[389137312,1759589443651,-500.0,0.00019178,2]
[389137313,1759589443661,-500.0,0.00019178,2]
[389137314,1759589443670,-467.31736296,0.00019178,2]
[389137315,1759589443681,-500.0,0.00019178,2]
[389137316,1759589443691,-500.0,0.00019178,2]
[389137317,1759589443700,-500.0,0.00019178,2]
[389137318,1759589443710,-2210.29,0.00019178,2]
[389137319,1759589443719,-500.0,0.00019178,2]
[389137320,1759589443729,-620.44,0.00019178,2]
[389137321,1759589443738,-500.0,0.00019178,2]
[389137322,1759589443748,-500.0,0.00019178,2]
[389137323,1759589443757,-556.0,0.00019178,2]
[389137324,1759589443766,-500.0,0.00019178,2]
[389137325,1759589443776,-500.0,0.00019178,2]
[389137326,1759589443785,-930.35,0.00019178,2]
[389137327,1759589443795,-500.0,0.00019178,2]
[389137328,1759589443804,-500.0,0.00019178,2]
[389137329,1759589443815,-500.0,0.00019178,2]
[389137330,1759589443873,-500.0,0.00019178,2]
[389137331,1759589443883,-500.0,0.00019178,2]
[389137332,1759589443893,-538.45,0.00019178,2]
[389137333,1759589443902,-503.46,0.00019178,2]
[389137334,1759589443911,-776.48,0.00019178,2]
[389137335,1759589443920,-500.0,0.00019178,2]
[389137336,1759589443929,-500.0,0.00019178,2]
[389137337,1759589443938,-1000.0,0.00019178,2]
[389137338,1759589443947,-500.0,0.00019178,2]
[389137339,1759589443957,-407.03477911,0.00019178,2]
[389137340,1759589443967,-2787.19,0.00019178,2]
[389137341,1759589443976,-500.0,0.00019178,2]
[389137342,1759589443985,-500.0,0.00019178,2]
[389137343,1759589443995,-500.0,0.00019178,2]
[389137344,1759589444004,-733.8,0.00019178,2]
[389137345,1759589444013,-500.0,0.00019178,2]
[389137346,1759589444023,-500.0,0.00019178,2]
[389137347,1759589444038,-500.0,0.00019178,2]
[389137348,1759589444047,-500.0,0.00019178,2]
[389137349,1759589444056,-500.0,0.00019178,2]
[389137350,1759589444066,-500.0,0.00019178,2]
[389137351,1759589444076,-500.0,0.00019178,2]
[389137352,1759589444086,-1669.31,0.00019178,2]
[389137353,1759589444095,-539.59,0.00019178,2]
[389137354,1759589444105,-500.0,0.00019178,2]
[389137355,1759589444114,-500.0,0.00019178,2]
[389137356,1759589444123,-500.0,0.00019178,2]
[389137357,1759589444132,-617.37,0.00019178,2]
[389137358,1759589444142,-564.84,0.00019178,2]
[389137359,1759589444152,-500.0,0.00019178,2]
[389137360,1759589444162,-544.08,0.00019178,2]
[389137361,1759589444171,-526.77,0.00019178,2]
[389137362,1759589444181,-500.0,0.00019178,2]
[389137363,1759589444190,-500.0,0.00019178,2]
[389137364,1759589444199,-500.0,0.00019178,2]
[389137365,1759589444209,-500.0,0.00019178,2]
[389137366,1759589444218,-500.0,0.00019178,2]
[389137367,1759589444227,-500.0,0.00019178,2]
[389137368,1759589444236,-500.0,0.00019178,2]
[389137369,1759589444246,-500.0,0.00019178,2]
[389137370,1759589444255,-901.55,0.00019178,2]
[389137371,1759589444264,-500.0,0.00019178,2]
[389137372,1759589444274,-4067.83,0.00019178,2]
[389137373,1759589444283,-481.01183531,0.00019178,2]
[389137374,1759589444292,-500.0,0.00019178,2]
[389137375,1759589444303,-985.62,0.00019178,2]
[389137376,1759589444313,-500.0,0.00019178,2]
[389137377,1759589444322,-500.0,0.00019178,2]
[389137378,1759589444331,-500.0,0.00019178,2]
[389137379,1759589444340,-676.23,0.00019178,2]
[389137380,1759589444351,-535.2,0.00019178,2]
[389137381,1759589444361,-744.7,0.00019178,2]
[389137382,1759589444370,-500.0,0.00019178,2]
[389137383,1759589444380,-500.0,0.00019178,2]
[389137384,1759589444389,-500.0,0.00019178,2]
[389137385,1759589444399,-500.0,0.00019178,2]
[389137386,1759589444408,-500.0,0.00019178,2]
[389137387,1759589444417,-500.0,0.00019178,2]
[389137388,1759589444426,-500.0,0.00019178,2]
[389137389,1759589444436,-544.48,0.00019178,2]
[389137390,1759589444445,-500.0,0.00019178,2]
[389137391,1759589444454,-2227.84,0.00019178,2]
[389137392,1759589444463,-1208.08,0.00019178,2]
[389137393,1759589444473,-500.0,0.00019178,2]
[389137394,1759589444482,-353.26456486,0.00019178,2]
[389137395,1759589444491,-500.0,0.00019178,2]
[389137396,1759589444500,-2117.71,0.00019178,2]
[389137397,1759589444510,-500.0,0.00019178,2]
[389137398,1759589444519,-315.91581834,0.00019178,2]
[389137399,1759589444528,-1343.97,0.00019178,2]
[389137400,1759589444538,-500.0,0.00019178,2]
[389137401,1759589444547,-500.0,0.00019178,2]
[389137402,1759589444557,-829.2,0.00019178,2]
[389137403,1759589444568,-500.0,0.00019178,2]
[389137404,1759589444578,-1118.9,0.00019178,2]
[389137405,1759589444588,-500.0,0.00019178,2]
[389137406,1759589444598,-1781.89,0.00019178,2]
[389137407,1759589444608,-500.0,0.00019178,2]
[389137408,1759589444617,-500.0,0.00019178,2]
[389137409,1759589444626,-1021.18,0.00019178,2]
[389137410,1759589444634,-500.0,0.00019178,2]
[389137411,1759589444643,-712.46,0.00019178,2]
[389137412,1759589444653,-1332.73,0.00019178,2]
[389137413,1759589444662,-500.0,0.00019178,2]
[389137414,1759589444671,-1325.7,0.00019178,2]
[389137415,1759589444681,-1990.33,0.00019178,2]
[389137416,1759589444690,-500.0,0.00019178,2]
[389137417,1759589444699,-500.0,0.00019178,2]
[389137418,1759589444709,-500.0,0.00019178,2]
[389137419,1759589444718,-500.0,0.00019178,2]
[389137420,1759589444727,-560.36313257,0.00019178,2]
[389137421,1759589444736,-384.98250051,0.00019178,2]
[389137422,1759589444745,-627.07,0.00019178,2]
[389137423,1759589444754,-500.0,0.00019178,2]
[389137424,1759589444763,-771.96,0.00019178,2]
[389137425,1759589444772,-257.36122674,0.00019178,2]
[389137426,1759589444781,-500.0,0.00019178,2]
[389137427,1759589444790,-500.0,0.00019178,2]
[389137428,1759589444799,-1279.26,0.00019178,2]
[389137429,1759589444810,-500.0,0.00019178,2]
[389137430,1759589444819,-500.0,0.00019178,2]
[389137431,1759589444828,-500.0,0.00019178,2]
[389137432,1759589444838,-500.0,0.00019178,2]
[389137433,1759589444848,-500.0,0.00019178,2]
[389137434,1759589444857,-1173.08,0.00019178,2]
[389137435,1759589444866,-500.0,0.00019178,2]
[389137436,1759589444875,-500.0,0.00019178,2]
[389137437,1759589444884,-570.58955426,0.00019178,2]
[389137438,1759589444893,-500.0,0.00019178,2]
[389137439,1759589444903,-500.0,0.00019178,2]
[389137440,1759589444912,-500.0,0.00019178,2]
[389137441,1759589444921,-771.09,0.00019178,2]
[389137442,1759589444930,-500.0,0.00019178,2]
[389137443,1759589444940,-893.89,0.00019178,2]
[389137444,1759589444949,-6274.04,0.00019178,2]
[389137445,1759589444968,-639.24,0.00019178,2]
[389137446,1759589444978,-500.0,0.00019178,2]
[389137447,1759589444987,-500.0,0.00019178,2]
[389137448,1759589444996,-418.52187975,0.00019178,2]
[389137449,1759589445006,-500.0,0.00019178,2]
[389137450,1759589445016,-500.0,0.00019178,2]
[389137451,1759589445025,-500.0,0.00019178,2]
[389137452,1759589445035,-500.0,0.00019178,2]
[389137453,1759589445044,-2342.12,0.00019178,2]
[389137454,1759589445054,-500.0,0.00019178,2]
[389137455,1759589445063,-500.0,0.00019178,2]
[389137456,1759589445072,-1318.49,0.00019178,2]
[389137457,1759589445084,-500.0,0.00019178,2]
[389137458,1759589445093,-500.0,0.00019178,2]
[389137459,1759589445104,-204.48709848,0.00019178,2]
[389137460,1759589445113,-937.29,0.00019178,2]
[389137461,1759589445122,-1288.12,0.00019178,2]
[389137462,1759589445131,-500.0,0.00019178,2]
[389137463,1759589445141,-500.0,0.00019178,2]
[389137464,1759589445150,-500.0,0.00019178,2]
[389137465,1759589445159,-500.0,0.00019178,2]
[389137466,1759589445169,-500.0,0.00019178,2]
[389137467,1759589445178,-1272.7,0.00019178,2]
[389137468,1759589445187,-802.84,0.00019178,2]
[389137469,1759589445197,-919.57,0.00019178,2]
[389137470,1759589445206,-1053.27,0.00019178,2]
[389137471,1759589445215,-500.0,0.00019178,2]
[389137472,1759589445224,-500.0,0.00019178,2]
[389137473,1759589445234,-1133.21,0.00019178,2]
[389137474,1759589445243,-500.0,0.00019178,2]
[389137475,1759589445252,-500.0,0.00019178,2]
[389137476,1759589445262,-1400.27,0.00019178,2]
[389137477,1759589445272,-500.0,0.00019178,2]
[389137478,1759589445282,-500.0,0.00019178,2]
[389137479,1759589445292,-500.0,0.00019178,2]
[389137480,1759589445303,-268.82257756,0.00019178,2]
[389137481,1759589445313,-500.0,0.00019178,2]
[389137482,1759589445323,-975.97,0.00019178,2]
[389137483,1759589445335,-500.0,0.00019178,2]
[389137484,1759589445345,-500.0,0.00019178,2]
[389137485,1759589445355,-716.96,0.00019178,2]
[389137486,1759589445365,-1214.22,0.00019178,2]
[389137487,1759589445374,-500.0,0.00019178,2]
[389137488,1759589445384,-500.0,0.00019178,2]
[389137489,1759589445393,-500.0,0.00019178,2]
[389137490,1759589445404,-500.0,0.00019178,2]
[389137491,1759589445413,-500.0,0.00019178,2]
[389137492,1759589445423,-500.0,0.00019178,2]
[389137493,1759589445432,-930.1,0.00019178,2]
[389137494,1759589445442,-500.0,0.00019178,2]
[389137495,1759589445452,-500.0,0.00019178,2]
[389137496,1759589445462,-500.0,0.00019178,2]
[389137497,1759589445471,-500.0,0.00019178,2]
[389137498,1759589445481,-500.0,0.00019178,2]
[389137500,1759589445491,-500.0,0.00019178,2]
[389137501,1759589445501,-500.0,0.00019178,2]
[389137502,1759589445510,-500.0,0.00019178,2]
[389137503,1759589445520,-500.0,0.00019178,2]
[389137505,1759589445530,-500.0,0.00019178,2]
[389137507,1759589445540,-2313.54,0.00019178,2]
[389137508,1759589445549,-2988.06,0.00019178,2]
[389137509,1759589445559,-500.0,0.00019178,2]
[389137510,1759589445574,-500.0,0.00019178,2]
[389137511,1759589445588,-601.81,0.00019178,2]
[389137512,1759589445599,-500.0,0.00019178,2]
[389137513,1759589445610,-791.54,0.00019178,2]
[389137514,1759589445620,-1032.15,0.00019178,2]
[389137515,1759589445629,-500.0,0.00019178,2]
[389137516,1759589445641,-500.0,0.00019178,2]
[389137517,1759589445651,-500.0,0.00019178,2]
[389137518,1759589445661,-500.0,0.00019178,2]
[389137519,1759589445671,-500.0,0.00019178,2]
[389137520,1759589445680,-500.0,0.00019178,2]
[389137521,1759589445692,-4907.28,0.00019178,2]
[389137522,1759589445702,-572.53,0.00019178,2]
[389137523,1759589445711,-3467.75,0.00019178,2]
[389137524,1759589445722,-500.0,0.00019178,2]
[389137525,1759589445732,-500.0,0.00019178,2]
[389137526,1759589445742,-500.0,0.00019178,2]
[389137527,1759589445753,-500.0,0.00019178,2]
[389137528,1759589445762,-500.0,0.00019178,2]
[389137529,1759589445773,-401.15748409,0.00019178,2]
[389137530,1759589445782,-500.0,0.00019178,2]
[389137531,1759589445792,-991.27,0.00019178,2]
[389137532,1759589445802,-500.0,0.00019178,2]
[389137533,1759589445814,-500.0,0.00019178,2]
[389137534,1759589445823,-500.0,0.00019178,2]
[389137535,1759589445834,-500.0,0.00019178,2]
[389137536,1759589445844,-603.06940771,0.00019178,2]
[389137538,1759589445856,-556.72226983,0.00019178,2]
[389137539,1759589445866,-500.0,0.00019178,2]
[389137540,1759589445875,-500.0,0.00019178,2]
[389137541,1759589445885,-921.55,0.00019178,2]
[389137542,1759589445895,-500.0,0.00019178,2]